[Event "DVM U16 2019"]
[Site "Magedburg"]
[Date "2019.12.29"]
[Round "6"]
[White "Baranyai-Molnar, Adam-Kristof"]
[Black "Henning, Marvin"]
[Result "1-0"]
[ECO "B01"]
[WhiteElo "1756"]
[BlackElo "1972"]
[Annotator "NA"]
[PlyCount "109"]
[EventDate "2019.12.27"]
[EventType "team-tourn"]
[EventRounds "7"]
[EventCountry "GER"]
[SourceTitle "playchess.com"]
[Source "ChessBase"]
[SourceQuality "1"]
[WhiteTeam "SF Neuberg"]
[BlackTeam "Reideburger SV 90 Halle"]
[BlackTeamCountry "GER"]
[TimeControl "40/5400+30:1800+30"]

1. e4 {[%emt 0:00:00]} d5 {[%emt 0:00:00]} 2. exd5 {[%emt 0:00:00]} Qxd5 {[%emt 0:00:00]} 3. Nf3 {[%emt 0:00:00]} Nf6 {[%emt 0:00:00]} 4. d4 {[%emt 0:00:00]} a6 {[%emt 0:00:24]} 5. c4 {[%emt 0:04:39]} Qd8 {[%emt 0:00:27]} 6. Nc3 {[%emt 0:00:17]} g6 {[%emt 0:01:26]} 7. Be2 {[%emt 0:00:57]} Bg7 {[%emt 0:00:08]} 8. O-O {[%emt 0:00:19]} O-O {[%emt 0:00:07]} 9. h3 {[%emt 0:02:51]} c6 {[%emt 0:00:27]} 10. Be3 {[%emt 0:00:52]} Nbd7 {[%emt 0:01:40]} 11. Qb3 {[%emt 0:02:30]} Re8 {[%emt 0:03:50]} 12. Rad1 {[%emt 0:01:34]} e6 {[%emt 0:11:14]} 13. Ne5 {[%emt 0:04:21]} Qa5 {[%emt 0:04:09]} 14. f4 {[%emt 0:01:13]} c5 {[%emt 0:01:59]} 15. Kh1 {[%emt 0:05:43]} cxd4 {[%emt 0:05:17]} 16. Bxd4 {[%emt 0:00:05]} Qc7 {[%emt 0:02:39]} 17. Bf3 {[%emt 0:03:16]} h6 {[%emt 0:11:06]} 18. Rfe1 {[%emt 0:01:11]} Rd8 {[%emt 0:12:21]} 19. Na4 {[%emt 0:01:22]} Rb8 {[%emt 0:07:04]} 20. Bb6 {[%emt 0:14:16]} Nxb6 {[%emt 0:00:17]} 21. Qxb6 {[%emt 0:00:07]} Qxb6 {[%emt 0:00:36]} 22. Nxb6 {[%emt 0:00:05]} Re8 {[%emt 0:00:52]} 23. b4 {[%emt 0:00:14]} g5 {[%emt 0:00:48]} 24. g3 {[%emt 0:00:41]} Bf8 {[%emt 0:01:27]} 25. c5 {[%emt 0:00:12]} Be7 {[%emt 0:01:52]} 26. Re2 {[%emt 0:01:14]} Kg7 {[%emt 0:04:17]} 27. Rc2 {[%emt 0:05:01]} Rf8 {[%emt 0:02:55]} 28. a4 {[%emt 0:00:37]} Nd5 {[%emt 0:08:26]} 29. Bxd5 {[%emt 0:01:03]} exd5 {[%emt 0:00:05]} 30. Ned7 {[%emt 0:00:06]} Bxd7 {[%emt 0:00:28]} 31. Nxd7 {[%emt 0:00:04]} Rbd8 {[%emt 0:00:35]} 32. Nxf8 {[%emt 0:00:07]} Bxf8 {[%emt 0:00:05]} 33. fxg5 {[%emt 0:00:29]} hxg5 {[%emt 0:00:03]} 34. Rcd2 {[%emt 0:00:12]} Be7 {[%emt 0:02:39]} 35. Rxd5 {[%emt 0:00:31]} Rb8 {[%emt 0:00:10]} 36. Rd7 {[%emt 0:01:14]} Bf6 {[%emt 0:00:07]} 37. Re1 {[%emt 0:00:21]} Kg6 {[%emt 0:02:12]} 38. b5 {[%emt 0:01:24]} axb5 {[%emt 0:00:21]} 39. axb5 {[%emt 0:00:06]} Rc8 {[%emt 0:01:39]} 40. Rc1 {[%emt 0:00:26]} Rb8 {[%emt 0:02:03]} 41. b6 {[%emt 0:30:46]} Be5 {[%emt 0:32:00]} 42. Kg2 {[%emt 0:00:21]} f6 {[%emt 0:00:19]} 43. Rc2 {[%emt 0:00:51]} Kf5 {[%emt 0:00:27]} 44. g4+ {[%emt 0:01:02]} Ke6 {[%emt 0:00:06]} 45. Rd3 {[%emt 0:03:36]} Rc8 {[%emt 0:02:44]} 46. c6 {[%emt 0:00:49]} bxc6 {[%emt 0:00:21]} 47. b7 {[%emt 0:00:10]} Rb8 {[%emt 0:00:05]} 48. Rxc6+ {[%emt 0:00:07]} Ke7 {[%emt 0:00:03]} 49. Rb6 {[%emt 0:00:33]} Bf4 {[%emt 0:01:30]} 50. Kf3 {[%emt 0:00:29]} Re8 {[%emt 0:01:11]} 51. h4 {[%emt 0:01:29]} Rb8 {[%emt 0:01:23]} 52. h5 {[%emt 0:00:55]} Bc7 {[%emt 0:00:32]} 53. Rb4 {[%emt 0:00:44]} Ke6 {[%emt 0:01:27]} 54. Re4+ {[%emt 0:02:51]} Be5 {[%emt 0:00:15] normal} 55. Rb3 {[%emt 0:00:12] normal} 1-0

[Event "DVM U16 2019"]
[Site "Magedburg"]
[Date "2019.12.29"]
[Round "6"]
[White "Seidel, Arne-Christian"]
[Black "Kolzenburg, Jan Niklas"]
[Result "1-0"]
[ECO "E09"]
[WhiteElo "1636"]
[BlackElo "1648"]
[Annotator "NA"]
[PlyCount "75"]
[EventDate "2019.12.27"]
[EventType "team-tourn"]
[EventRounds "7"]
[EventCountry "GER"]
[SourceTitle "playchess.com"]
[Source "ChessBase"]
[SourceQuality "1"]
[WhiteTeam "Reideburger SV 90 Halle"]
[BlackTeam "SF Neuberg"]
[WhiteTeamCountry "GER"]
[TimeControl "40/5400+30:1800+30"]

1. d4 {[%emt 0:00:00]} d5 {[%emt 0:00:00]} 2. c4 {[%emt 0:00:00]} e6 {[%emt 0:00:00]} 3. Nf3 {[%emt 0:00:13]} Nf6 {[%emt 0:01:40]} 4. g3 {[%emt 0:01:00]} Be7 {[%emt 0:02:03]} 5. Bg2 {[%emt 0:00:14]} O-O {[%emt 0:00:45]} 6. O-O {[%emt 0:00:07]} Nbd7 {[%emt 0:05:30]} 7. Nbd2 {[%emt 0:04:12]} c6 {[%emt 0:11:27]} 8. Qc2 {[%emt 0:00:55]} Re8 {[%emt 0:08:07]} 9. Rd1 {[%emt 0:03:21]} Bf8 {[%emt 0:07:29]} 10. e4 {[%emt 0:02:12]} dxe4 {[%emt 0:02:21]} 11. Nxe4 {[%emt 0:00:16]} Nxe4 {[%emt 0:02:30]} 12. Qxe4 {[%emt 0:00:08]} Nf6 {[%emt 0:01:37]} 13. Qc2 {[%emt 0:00:15]} Bd6 {[%emt 0:08:48]} 14. a3 {[%emt 0:09:40]} Qa5 {[%emt 0:07:26]} 15. Bg5 {[%emt 0:02:33]} Nd7 {[%emt 0:08:10]} 16. b4 {[%emt 0:00:56]} Qf5 {[%emt 0:03:43]} 17. Qd2 {[%emt 0:06:02]} Be7 {[%emt 0:05:49]} 18. Bf4 {[%emt 0:02:45]} h6 {[%emt 0:03:24]} 19. Re1 {[%emt 0:14:51]} g5 {[%emt 0:01:26]} 20. Bc7 {[%emt 0:00:55]} Bd8 {[%emt 0:02:09]} 21. Bd6 {[%emt 0:01:47]} Be7 {[%emt 0:02:06]} 22. Bxe7 {[%emt 0:00:32]} Rxe7 {[%emt 0:00:04]} 23. d5 {[%emt 0:00:19]} cxd5 {[%emt 0:01:07]} 24. cxd5 {[%emt 0:00:32]} e5 {[%emt 0:01:51]} 25. Nd4 {[%emt 0:01:22]} Qf6 {[%emt 0:02:30]} 26. Nb5 {[%emt 0:00:40]} Nb6 {[%emt 0:02:08]} 27. Rad1 {[%emt 0:23:56]} Nc4 {[%emt 0:01:09]} 28. Qc3 {[%emt 0:00:46]} Nd6 {[%emt 0:01:31]} 29. Nxd6 {[%emt 0:03:19]} Qxd6 {[%emt 0:00:08]} 30. Qc5 {[%emt 0:00:17]} Qf6 {[%emt 0:01:57]} 31. d6 {[%emt 0:00:28]} Rd7 {[%emt 0:01:36]} 32. Bh3 {[%emt 0:03:57]} Rd8 {[%emt 0:01:14]} 33. d7 {[%emt 0:00:26]} Bxd7 {[%emt 0:00:25]} 34. Bxd7 {[%emt 0:01:04]} Qf3 {[%emt 0:01:48]} 35. a4 {[%emt 0:01:46]} g4 {[%emt 0:00:34]} 36. Qxe5 {[%emt 0:00:29]} Rac8 {[%emt 0:01:31]} 37. Qd4 {[%emt 0:05:54]} Rc7 {[%emt 0:00:56]} 38. Qxg4+ {[%emt 0:00:10] normal} 1-0

[Event "DVM U16 2019"]
[Site "Magedburg"]
[Date "2019.12.30"]
[Round "7"]
[White "Nguyen, Alex Dac-Vuong"]
[Black "Köllner, Ruben Gideon"]
[Result "0-1"]
[ECO "C41"]
[WhiteElo "2409"]
[BlackElo "2330"]
[Annotator "NA"]
[PlyCount "136"]
[EventDate "2019.12.27"]
[EventType "team-tourn"]
[EventRounds "7"]
[EventCountry "GER"]
[SourceTitle "playchess.com"]
[Source "ChessBase"]
[SourceQuality "1"]
[WhiteTeam "SG Leipzig"]
[BlackTeam "SG Bochum"]
[WhiteTeamCountry "GER"]
[TimeControl "40/5400+30:1800+30"]

1. e4 {[%emt 0:00:00]} d6 {[%emt 0:00:00]} 2. d4 {[%emt 0:00:00]} Nf6 {[%emt 0:00:00]} 3. Nc3 {[%emt 0:00:00]} e5 {[%emt 0:00:00]} 4. Nf3 {[%emt 0:00:00]} Nbd7 {[%emt 0:00:00]} 5. Bc4 {[%emt 0:00:18]} Be7 {[%emt 0:00:00]} 6. a4 {[%emt 0:03:47] unterminated} O-O {[%emt 0:02:52] unterminated} 7. O-O {[%emt 0:01:14]} c6 {[%emt 0:01:11] unterminated} 8. Qe2 {[%emt 0:04:49] unterminated} exd4 {[%emt 0:09:12]} 9. Nxd4 {[%emt 0:00:06] unterminated} Ne5 {[%emt 0:00:03] unterminated unterminated. C41: Philidor Defence} 10. Rd1 {[%emt 0:10:15] unterminated} Nxc4 $146 {[%emt 0:19:21]} ({Predecessor:} 10... Re8 11. h3 Bf8 12. Bb3 a5 13. Nf3 Qc7 14. Nxe5 dxe5 15. Bg5 Be7 16. Rd3 h6 17. Bh4 {1-0 (34) Ricardi,P (2545)-Hoffman,A (2525) Villa Martelli 1998}) 11. Qxc4 {[%emt 0:00:05] unterminated} Qa5 {[%emt 0:01:45] unterminated} 12. Bf4 {[%emt 0:04:13] unterminated} Rd8 {[%emt 0:03:20] unterminated} 13. Qe2 {[%emt 0:13:41] unterminated} Bf8 {[%emt 0:16:58] unterminated} 14. Nb3 {[%emt 0:01:33] unterminated} Qh5 {[%emt 0:04:54] unterminated} 15. Qxh5 {[%emt 0:01:08]} Nxh5 {[%emt 0:00:02]} 16. Be3 {[%emt 0:00:13] unterminated} f5 {[%emt 0:06:40] unterminated} 17. e5 {[%emt 0:16:18] unterminated} f4 {[%emt 0:03:23]} 18. Bc5 {[%emt 0:00:09] unterminated} Bf5 {[%emt 0:02:35] unterminated} 19. Rxd6 $1 {[%emt 0:03:25] unterminated} Bxd6 {[%emt 0:04:40]} 20. Bxd6 {[%emt 0:00:10] unterminated} g6 {[%emt 0:03:51] unterminated} 21. Nd4 {[%emt 0:02:47]} Ng7 {[%emt 0:01:40] unterminated} 22. Nce2 {[%emt 0:01:50] unterminated} Ne8 {[%emt 0:01:59] unterminated} 23. Nxf5 {[%emt 0:05:36]} gxf5 {[%emt 0:00:07]} 24. Bb4 $1 {[%emt 0:00:08] unterminated} f3 {[%emt 0:03:51]} 25. gxf3 {[%emt 0:00:08] unterminated} Ng7 {[%emt 0:00:21] unterminated} 26. Bc3 {[%emt 0:15:33] unterminated} Kf7 {[%emt 0:01:49] unterminated} 27. f4 {[%emt 0:03:01] unterminated} Ne6 {[%emt 0:01:11] unterminated} 28. f3 {[%emt 0:01:14] unterminated} Rd5 {[%emt 0:05:21]} 29. Kf2 {[%emt 0:00:42] unterminated} Rad8 {[%emt 0:01:57] unterminated} 30. Rg1 {[%emt 0:05:31] unterminated} Rg8 {[%emt 0:01:37]} 31. Rxg8 {[%emt 0:00:21]} Kxg8 {[%emt 0:00:05]} 32. Ng3 {[%emt 0:00:12]} Ng7 {[%emt 0:00:27]} 33. Ke2 {[%emt 0:00:11]} Kf7 {[%emt 0:00:16] unterminated} 34. b3 {[%emt 0:01:43] unterminated} Kg6 {[%emt 0:00:12]} 35. Bd2 {[%emt 0:03:02]} Ne6 {[%emt 0:01:00] unterminated} 36. Be3 {[%emt 0:02:14] unterminated} b6 {[%emt 0:01:16]} (36... b5 $19 37. axb5 cxb5) 37. c3 {[%emt 0:01:00]} c5 {[%emt 0:00:34]} 38. Nh1 {[%emt 0:00:47]} c4 {[%emt 0:01:33]} 39. b4 {[%emt 0:00:08]} Rd3 {[%emt 0:00:35]} 40. Bd2 {[%emt 0:00:03]} a5 {[%emt 0:00:39]} 41. Nf2 {[%emt 0:30:08] unterminated} Rd5 $19 {[%emt 0:04:51]} 42. bxa5 {[%emt 0:00:00]} Rxa5 {[%emt 0:01:02]} 43. Nd1 {[%emt 0:00:00]} Nc7 {[%emt 0:18:03]} 44. Nb2 {[%emt 0:00:00]} Rc5 {[%emt 0:00:04]} 45. Kf2 {[%emt 0:00:00]} Nd5 {[%emt 0:01:38]} 46. Kg3 {[%emt 0:00:00]} b5 {[%emt 0:02:52]} 47. axb5 {[%emt 0:00:00]} Nb6 {[%emt 0:00:07]} 48. Be3 {[%emt 0:00:00]} Rxb5 {[%emt 0:00:05]} 49. Bxb6 {[%emt 0:00:00]} Rxb2 {[%emt 0:00:05]} 50. Bc5 {[%emt 0:00:00]} Rd2 {[%emt 0:01:23]} 51. e6 {[%emt 0:00:00]} Kf6 {[%emt 0:02:34]} 52. e7 {[%emt 0:00:00]} Kf7 {[%emt 0:00:04]} 53. Ba3 {[%emt 0:01:12]} Rc2 {[%emt 0:00:33]} 54. Bb4 {[%emt 0:00:24]} Rb2 {[%emt 0:00:08]} 55. Bc5 {[%emt 0:01:45]} Rb3 {[%emt 0:00:06]} 56. Bd4 {[%emt 0:00:12]} Kxe7 {[%emt 0:00:03]} 57. Kh4 {[%emt 0:01:15]} Rb2 {[%emt 0:01:21]} 58. Kg5 {[%emt 0:00:05]} Rxh2 {[%emt 0:01:10]} 59. Kxf5 {[%emt 0:00:03]} Rg2 {[%emt 0:00:30]} 60. Bf6+ {[%emt 0:00:55]} Kf7 {[%emt 0:00:07]} 61. Bg5 {[%emt 0:00:24]} Rc2 {[%emt 0:01:10]} 62. Bf6 {[%emt 0:01:34]} h5 {[%emt 0:00:29]} 63. Be5 {[%emt 0:01:44]} Rg2 {[%emt 0:00:04]} 64. Ke4 {[%emt 0:00:03]} h4 {[%emt 0:00:42]} 65. Kd5 {[%emt 0:00:57]} h3 {[%emt 0:00:25]} 66. f5 {[%emt 0:00:03]} h2 {[%emt 0:00:05]} 67. Bxh2 {[%emt 0:00:03]} Rxh2 {[%emt 0:00:04]} 68. Kxc4 {[%emt 0:00:03]} Rh5 {[%emt 0:00:36] normal} 0-1

[Event "DVM U16 2019"]
[Site "Magedburg"]
[Date "2019.12.30"]
[Round "7"]
[White "Woelk, Tom-Frederic"]
[Black "Bethke, Richard"]
[Result "1/2-1/2"]
[ECO "D35"]
[WhiteElo "2245"]
[BlackElo "2332"]
[Annotator "ChessBase"]
[PlyCount "156"]
[EventDate "2019.12.27"]
[EventType "team-tourn"]
[EventRounds "7"]
[EventCountry "GER"]
[SourceTitle "playchess.com"]
[Source "ChessBase"]
[SourceQuality "1"]
[WhiteTeam "Hamburger SK"]
[BlackTeam "SF Neuberg"]
[WhiteTeamCountry "GER"]
[BlackTeamCountry "GER"]
[TimeControl "40/5400+30:1800+30"]

1. d4 {[%emt 0:00:00]} d5 {[%emt 0:00:00]} 2. c4 {[%emt 0:00:00]} e6 {[%emt 0:00:00]} 3. Nc3 {[%emt 0:00:00]} Nf6 {[%emt 0:00:00]} 4. cxd5 {[%emt 0:00:00]} exd5 {[%emt 0:00:00]} 5. Bg5 {[%emt 0:00:00]} c6 {[%emt 0:00:12]} 6. e3 {[%emt 0:00:04]} Be7 {[%emt 0:00:04]} 7. Bd3 {[%emt 0:00:14]} Nbd7 {[%emt 0:00:06]} 8. Nge2 {[%emt 0:02:16]} h6 {[%emt 0:00:52]} 9. Bh4 {[%emt 0:00:03]} Nh5 {[%emt 0:00:04]} 10. Bxe7 {[%emt 0:05:02]} Qxe7 {[%emt 0:00:07]} 11. Qc2 {[%emt 0:02:14]} Nb6 {[%emt 0:00:39]} 12. O-O {[%emt 0:03:25]} O-O {[%emt 0:00:50]} 13. Rab1 {[%emt 0:00:26]} a5 {[%emt 0:01:47]} 14. Na4 {[%emt 0:01:46]} Nxa4 {[%emt 0:00:28]} 15. Qxa4 {[%emt 0:00:02]} Bg4 {[%emt 0:02:14]} 16. Rfe1 {[%emt 0:16:36]} Qg5 {[%emt 0:02:18]} 17. Ng3 {[%emt 0:08:07]} Nxg3 {[%emt 0:00:31]} 18. hxg3 {[%emt 0:00:05]} Bf5 {[%emt 0:00:13]} 19. Qc2 {[%emt 0:01:05]} Bxd3 {[%emt 0:00:24]} 20. Qxd3 {[%emt 0:00:03]} Rfe8 {[%emt 0:00:41]} 21. Re2 {[%emt 0:03:10]} Re4 {[%emt 0:03:36]} 22. f3 {[%emt 0:24:21]} Re6 {[%emt 0:00:49]} 23. Kf2 {[%emt 0:00:19]} Rg6 {[%emt 0:00:47]} 24. g4 {[%emt 0:00:04]} h5 {[%emt 0:00:29]} 25. Qf5 {[%emt 0:01:13]} Qh4+ {[%emt 0:00:49]} 26. Kg1 {[%emt 0:02:03]} hxg4 {[%emt 0:00:51]} 27. fxg4 {[%emt 0:00:06]} Qxg4 {[%emt 0:01:21]} 28. Qxg4 {[%emt 0:00:09]} Rxg4 {[%emt 0:00:05]} 29. b4 {[%emt 0:00:17]} axb4 {[%emt 0:00:34]} 30. Rxb4 {[%emt 0:00:01]} b5 {[%emt 0:00:10]} 31. Rc2 {[%emt 0:00:30]} Rg6 {[%emt 0:00:05]} 32. a4 {[%emt 0:00:58]} bxa4 {[%emt 0:02:12]} 33. Ra2 {[%emt 0:00:29]} Re8 {[%emt 0:00:06]} 34. Ra3 {[%emt 0:01:45]} Re4 {[%emt 0:00:33]} 35. Rbxa4 {[%emt 0:00:19]} Rg3 {[%emt 0:00:13]} 36. Ra6 {[%emt 0:03:00]} Rexe3 {[%emt 0:04:11]} 37. Rxe3 {[%emt 0:00:06]} Rxe3 {[%emt 0:00:05]} 38. Rxc6 {[%emt 0:00:04]} Rd3 {[%emt 0:00:28]} 39. Kf2 {[%emt 0:00:57]} Rxd4 {[%emt 0:00:06]} 40. Ke3 {[%emt 0:00:18]} Re4+ {[%emt 0:00:37]} 41. Kf3 {[%emt 0:30:07]} Re6 {[%emt 0:31:04]} 42. Rc8+ {[%emt 0:00:02]} Kh7 {[%emt 0:00:07]} 43. Rd8 {[%emt 0:00:02]} Re5 {[%emt 0:00:05]} 44. Kf4 {[%emt 0:00:05]} f6 {[%emt 0:00:11]} 45. g3 {[%emt 0:00:16]} Kg6 {[%emt 0:01:00]} 46. Rd7 {[%emt 0:00:09]} Kh6 {[%emt 0:02:58]} 47. Kg4 {[%emt 0:00:33]} g5 {[%emt 0:01:35]} 48. Kf3 {[%emt 0:02:02]} Rf5+ {[%emt 0:02:39]} 49. Kg4 {[%emt 0:01:06]} Kg6 {[%emt 0:00:16]} 50. Kh3 {[%emt 0:00:56]} Re5 {[%emt 0:00:43]} 51. g4 {[%emt 0:00:41]} Re3+ {[%emt 0:00:04]} 52. Kg2 {[%emt 0:00:04]} Re4 {[%emt 0:00:04]} 53. Kg3 {[%emt 0:00:21]} d4 {[%emt 0:00:06]} 54. Kf3 {[%emt 0:00:35]} Rf4+ {[%emt 0:00:55]} 55. Kg3 {[%emt 0:00:07]} f5 {[%emt 0:02:39]} 56. Rd6+ {[%emt 0:00:11]} Kf7 {[%emt 0:00:06]} 57. gxf5 {[%emt 0:00:08]} Ke7 {[%emt 0:00:22]} 58. Rd5 {[%emt 0:02:10]} Kf6 {[%emt 0:00:09]} 59. Kg2 {[%emt 0:05:06]} Re4 {[%emt 0:05:18]} 60. Kf3 {[%emt 0:03:17]} Re3+ {[%emt 0:00:45]} 61. Kf2 {[%emt 0:01:22]} Rd3 {[%emt 0:00:04]} 62. Ke2 {[%emt 0:00:08]} Re3+ {[%emt 0:00:20]} 63. Kf2 {[%emt 0:00:07]} Re4 {[%emt 0:01:35]} 64. Kf3 {[%emt 0:00:05]} Rf4+ {[%emt 0:00:04]} 65. Kg2 {[%emt 0:00:43]} g4 {[%emt 0:00:22]} 66. Kg3 {[%emt 0:00:10]} Re4 {[%emt 0:00:04]} 67. Kh4 {[%emt 0:00:45]} Kf7 {[%emt 0:00:04]} 68. Kg3 {[%emt 0:08:57]} Ke7 {[%emt 0:00:05]} 69. Kh4 {[%emt 0:00:05]} Kf6 {[%emt 0:00:13]} 70. Ra5 {[%emt 0:00:03]} Ke7 {[%emt 0:05:13]} 71. Rd5 {[%emt 0:01:22]} Ke8 {[%emt 0:01:05]} 72. Kg3 {[%emt 0:01:02]} Kf8 {[%emt 0:00:04]} 73. Kh4 {[%emt 0:00:22]} Ke7 {[%emt 0:00:07]} 74. Kg3 {[%emt 0:00:11]} Kf7 {[%emt 0:00:09]} 75. Kh4 {[%emt 0:00:09]} Kf6 {[%emt 0:00:03]} 76. Ra5 {[%emt 0:00:07]} Re5 {[%emt 0:00:26]} 77. Rxe5 {[%emt 0:00:14]} Kxe5 {[%emt 0:00:04]} 78. Kxg4 {[%emt 0:00:05]} d3 {[%emt 0:00:51] normal} 1/2-1/2

[Event "DVM U16 2019"]
[Site "Magedburg"]
[Date "2019.12.30"]
[Round "7"]
[White "Dietz, Florian"]
[Black "Rietschel, Tilo"]
[Result "1/2-1/2"]
[ECO "B78"]
[WhiteElo "2116"]
[BlackElo "2005"]
[Annotator "NA"]
[PlyCount "120"]
[EventDate "2019.12.27"]
[EventType "team-tourn"]
[EventRounds "7"]
[EventCountry "GER"]
[SourceTitle "playchess.com"]
[Source "ChessBase"]
[SourceQuality "1"]
[WhiteTeam "Reideburger SV 90 Halle"]
[BlackTeam "Lübecker SV"]
[WhiteTeamCountry "GER"]
[BlackTeamCountry "GER"]
[TimeControl "40/5400+30:1800+30"]

1. e4 {[%emt 0:00:00]} c5 {[%emt 0:00:00]} 2. Nf3 {[%emt 0:00:00]} d6 {[%emt 0:00:00]} 3. d4 {[%emt 0:00:00]} cxd4 {[%emt 0:00:00]} 4. Nxd4 {[%emt 0:00:00]} Nf6 {[%emt 0:00:00]} 5. Nc3 {[%emt 0:00:00]} g6 {[%emt 0:00:00]} 6. Be3 {[%emt 0:00:15]} Bg7 {[%emt 0:00:05]} 7. f3 {[%emt 0:00:46]} O-O {[%emt 0:00:07]} 8. Bc4 {[%emt 0:00:17]} Nc6 {[%emt 0:00:56]} 9. Qd2 {[%emt 0:00:18] unterminated} Bd7 {[%emt 0:03:53]} 10. O-O-O {[%emt 0:00:22]} Rc8 {[%emt 0:06:04]} 11. Bb3 {[%emt 0:01:11]} Ne5 {[%emt 0:00:06]} 12. Kb1 {[%emt 0:00:27] unterminated} Nc4 {[%emt 0:04:02]} 13. Bxc4 $1 {[%emt 0:00:19]} Rxc4 {[%emt 0:00:07] unterminated} 14. g4 {[%emt 0:03:21] unterminated} Qb8 {[%emt 0:07:29] unterminated} 15. h4 {[%emt 0:12:36] unterminated} b5 {[%emt 0:06:14] unterminated} 16. h5 {[%emt 0:05:24] unterminated} b4 {[%emt 0:02:59] unterminated} 17. Nd5 {[%emt 0:01:27] unterminated} Nxd5 {[%emt 0:05:20] unterminated} 18. exd5 {[%emt 0:00:12] unterminated} g5 {[%emt 0:13:51] unterminated} 19. h6 {[%emt 0:05:45] unterminated} Be5 {[%emt 0:10:34] unterminated} 20. Nb3 {[%emt 0:05:09] unterminated} f6 {[%emt 0:03:33] unterminated} 21. Na5 {[%emt 0:04:19] unterminated} Rc5 $2 {[%emt 0:08:27] unterminated} (21... Rcc8 $15 {keeps the upper hand.}) 22. Bxc5 {[%emt 0:04:44]} dxc5 {[%emt 0:00:07]} 23. Nc6 {[%emt 0:01:08] unterminated} Bxc6 {[%emt 0:01:18] unterminated} 24. dxc6 {[%emt 0:00:04]} Qd6 {[%emt 0:00:42] unterminated} 25. Qd5+ {[%emt 0:07:36] unterminated} Qxd5 {[%emt 0:02:36]} 26. Rxd5 {[%emt 0:00:04]} Bd6 {[%emt 0:01:10] unterminated} 27. Rhd1 {[%emt 0:04:20] unterminated} Rc8 {[%emt 0:02:41]} 28. Rxd6 {[%emt 0:00:32]} exd6 {[%emt 0:00:08]} 29. Rxd6 {[%emt 0:00:05]} Kf7 {[%emt 0:00:44] unterminated} 30. Kc1 $2 {[%emt 0:00:45]} (30. Rd7+ $18 {is more deadly.} Kg6 31. c7 (31. Rxa7 Rxc6 32. a4 bxa3 $16)) 30... Rc7 {[%emt 0:00:23] unterminated} 31. Kd2 {[%emt 0:18:10] unterminated} Ke7 {[%emt 0:01:34]} 32. Rd5 {[%emt 0:00:30] unterminated} Rxc6 {[%emt 0:02:38] [#]} 33. Kd3 $1 {[%emt 0:00:17] unterminated} c4+ {[%emt 0:01:53] unterminated} 34. Kd4 {[%emt 0:00:17]} c3 $16 {[%emt 0:00:16]} 35. bxc3 {[%emt 0:09:57]} Rxc3 {[%emt 0:04:09]} 36. Ra5 {[%emt 0:00:39]} Kf7 {[%emt 0:01:52]} 37. Rxa7+ {[%emt 0:05:22]} Kg6 {[%emt 0:00:12]} 38. Ke4 {[%emt 0:05:17]} Rxc2 {[%emt 0:01:27]} 39. Ra6 {[%emt 0:01:05]} Rc4+ {[%emt 0:02:06]} 40. Ke3 {[%emt 0:01:54]} Rf4 {[%emt 0:01:48]} 41. Rd6 {[%emt 0:30:44]} Rc4 {[%emt 0:38:21]} 42. Rd4 {[%emt 0:00:00]} Rc3+ {[%emt 0:00:00]} 43. Ke4 {[%emt 0:00:00]} Rc2 {[%emt 0:00:00]} 44. Rxb4 {[%emt 0:00:00]} Rxa2 {[%emt 0:00:00]} 45. f4 {[%emt 0:00:00]} gxf4 {[%emt 0:00:00]} 46. Kxf4 {[%emt 0:00:00]} Rf2+ {[%emt 0:00:00]} 47. Kg3 {[%emt 0:00:00]} Rf1 {[%emt 0:00:00]} 48. Rb8 {[%emt 0:00:00]} Ra1 {[%emt 0:00:00]} 49. Rb6 {[%emt 0:02:53]} Kg5 {[%emt 0:00:00]} 50. Rb5+ {[%emt 0:02:40]} Kxh6 {[%emt 0:00:00]} 51. Rh5+ {[%emt 0:00:14]} Kg6 {[%emt 0:00:00]} 52. Kf4 {[%emt 0:00:39]} Ra4+ {[%emt 0:00:00]} 53. Kf3 {[%emt 0:00:16]} Ra1 {[%emt 0:00:00]} 54. Kf4 {[%emt 0:00:31]} Re1 {[%emt 0:00:00]} 55. Kf3 {[%emt 0:00:39]} Re5 {[%emt 0:00:42]} 56. Rh1 {[%emt 0:00:13] normal} Ra5 {[%emt 0:04:43]} 57. Kf4 {[%emt 0:00:46]} Ra3 {[%emt 0:01:14] normal} 58. Rh5 {[%emt 0:00:49]} Ra1 {[%emt 0:00:19]} 59. Kf3 Ra3+ {[%emt 0:01:35] normal} 60. Kf4 {[%emt 0:00:15]} Ra4+ {[%emt 0:00:13] normal Ke4} 1/2-1/2